bitfinex/quotes_SOLUSD_20250525
["timestamp","ask_amount","ask_price","bid_price","bid_amount"]
[1748148691303,11.4668656,173.15,173.09,82.5]
[1748148691903,11.4668656,173.14,173.09,82.5]
[1748148692076,11.4668656,173.14,173.1,34.58]
[1748148696305,11.4668656,173.15,173.1,34.58]
[1748148697595,11.4668656,173.15,173.11,118.96]
[1748148698301,11.4668656,173.13,173.11,118.96]
[1748148698501,26.14216157,173.18,173.11,35.98]
[1748148698795,11.60902717,173.18,173.11,35.98]
[1748148699103,11.4668656,173.18,173.11,82.5]
[1748148700202,11.4668656,173.17,173.11,82.5]
[1748148700499,26.0,173.19,173.11,82.5]
[1748148700500,11.4668656,173.16,173.11,82.5]
[1748148701500,11.4668656,173.17,173.11,82.5]
[1748148704101,26.0,173.19,173.1,34.58]
[1748148704405,11.4668656,173.18,173.1,34.58]
[1748148706302,26.0,173.2,173.1,34.58]
[1748148706512,11.4668656,173.18,173.1,34.58]
[1748148707607,11.4668656,173.18,173.11,118.94]
[1748148708504,11.4668656,173.18,173.11,35.96]
[1748148710003,11.4668656,173.18,173.11,118.46]
[1748148710309,11.4668656,173.18,173.11,82.5]
[1748148715812,11.4668656,173.17,173.11,82.5]
[1748148716018,11.4668656,173.16,173.11,82.5]
[1748148717597,11.4668656,173.16,173.12,118.92]
[1748148718619,11.4668656,173.17,173.12,118.92]
[1748148719002,11.4668656,173.17,173.12,35.96]
[1748148719507,11.4668656,173.17,173.13,34.58]
[1748148721549,11.4668656,173.16,173.11,82.5]
[1748148721845,11.4668656,173.16,173.12,34.58]
[1748148722521,11.4668656,173.15,173.12,34.58]
[1748148722830,0.14216157,173.19,173.12,34.58]
[1748148723002,11.4668656,173.15,173.12,34.58]
[1748148725739,11.4668656,173.16,173.12,34.58]
[1748148726244,11.4668656,173.17,173.12,34.58]
[1748148726417,11.4668656,173.18,173.12,34.58]
[1748148727710,11.4668656,173.18,173.13,118.92]
[1748148728041,11.4668656,173.17,173.13,118.92]
[1748148728215,11.4668656,173.17,173.14,34.58]
[1748148728410,15.60761675,173.17,173.14,34.58]
[1748148729138,11.4668656,173.17,173.14,34.58]
[1748148731934,4.14075115,173.18,173.14,34.58]
[1748148732527,4.14075115,173.19,173.14,34.58]
[1748148733223,4.14075115,173.19,173.15,1.5067]
[1748148734227,15.60761675,173.23,173.15,1.5067]
[1748148736044,11.4668656,173.22,173.15,1.5067]
[1748148737643,11.4668656,173.22,173.16,118.9]
[1748148739553,11.4668656,173.22,173.16,201.4]
[1748148741228,26.0,173.23,173.16,201.4]
[1748148741435,37.4668656,173.23,173.16,201.4]
[1748148741621,37.4668656,173.23,173.16,118.44]
[1748148741950,37.4668656,173.23,173.16,82.5]
[1748148744751,11.4668656,173.23,173.16,82.5]
[1748148747651,11.4668656,173.23,173.17,118.86]
[1748148747852,11.4668656,173.24,173.18,34.56]
[1748148748433,11.4668656,173.24,173.18,117.06]
[1748148751134,4.14075115,173.27,173.18,117.06]
[1748148751333,4.14075115,173.27,173.19,26.0]
[1748148751942,15.60761675,173.27,173.19,26.0]
[1748148752142,11.4668656,173.27,173.19,26.0]
[1748148753862,11.4668656,173.27,173.21,26.0]
[1748148755864,11.4668656,173.28,173.21,27.6114]
[1748148756061,11.4668656,173.28,173.21,110.1114]
[1748148756244,1.5768,173.3,173.21,110.1114]
[1748148756445,4.14075115,173.32,173.21,110.1114]
[1748148756752,11.4668656,173.29,173.21,110.1114]
[1748148757141,11.4668656,173.3,173.21,110.1114]
[1748148757662,11.4668656,173.3,173.22,118.86]
[1748148757842,11.4668656,173.3,173.23,34.56]
[1748148759735,11.4668656,173.29,173.23,34.56]
[1748148760362,11.4668656,173.29,173.23,117.06]
[1748148761247,11.4668656,173.3,173.23,117.06]
[1748148761958,11.4668656,173.32,173.23,117.06]
[1748148763668,17.86587886,173.31,173.23,117.06]
[1748148767567,17.86587886,173.31,173.24,118.82]
[1748148768369,17.86587886,173.31,173.24,118.42]
[1748148768871,17.86587886,173.33,173.24,82.5]
[1748148769671,17.86587886,173.32,173.24,82.5]
[1748148772278,1.5918,173.34,173.24,82.5]
[1748148772578,17.86587886,173.33,173.24,82.5]
[1748148774172,17.86587886,173.32,173.24,82.5]
[1748148776071,26.0,173.35,173.24,108.5]
[1748148776274,17.86587886,173.33,173.24,108.5]
[1748148777553,17.86587886,173.33,173.25,118.8]
[1748148777753,17.86587886,173.33,173.25,201.3]
[1748148778478,17.86587886,173.34,173.25,201.3]
[1748148778875,17.86587886,173.34,173.25,118.4]
[1748148779176,17.86587886,173.33,173.25,118.4]
[1748148781277,36.45995115,173.37,173.25,82.5]
[1748148781475,17.86587886,173.34,173.25,82.5]
[1748148783683,11.43104011,173.34,173.25,82.5]
[1748148783985,11.43104011,173.33,173.25,82.5]
[1748148784161,11.43104011,173.32,173.25,82.5]
[1748148785276,45.86632201,173.36,173.25,82.5]
[1748148785277,11.43104011,173.3,173.25,82.5]
[1748148785462,11.43104011,173.28,173.26,34.54]
[1748148785982,11.43104011,173.27,173.21,84.1114]
[1748148786278,11.43104011,173.25,173.22,34.54]
[1748148786483,11.43104011,173.26,173.22,34.54]
[1748148786687,30.14075115,173.31,173.22,34.54]
[1748148786688,11.43104011,173.28,173.22,34.54]
[1748148787359,11.43104011,173.27,173.22,34.54]
[1748148787561,11.43104011,173.27,173.23,118.8]
[1748148787793,17.87461835,173.27,173.23,118.8]
[1748148790874,17.87461835,173.27,173.22,34.54]
[1748148792285,17.87461835,173.28,173.22,34.54]
[1748148795293,4.14075115,173.3,173.22,34.54]
[1748148795478,17.87461835,173.28,173.22,117.04]
[1748148797590,17.87461835,173.28,173.23,118.8]
[1748148798207,17.87461835,173.29,173.23,118.8]
[1748148798389,17.87461835,173.29,173.23,35.9]
[1748148799801,17.87461835,173.3,173.23,118.4]
[1748148799982,4.14075115,173.31,173.23,84.085]
[1748148800673,4.14075115,173.31,173.24,18.64964886]
[1748148801076,22.0153695,173.33,173.24,18.64964886]
[1748148803200,17.87461835,173.32,173.23,84.085]
[1748148804300,17.87461835,173.31,173.23,84.085]
[1748148804508,17.87461835,173.3,173.23,84.085]
[1748148807298,17.87461835,173.31,173.23,84.085]
[1748148807605,17.87461835,173.31,173.24,118.78]
[1748148809887,4.14075115,173.33,173.24,35.88]
[1748148810085,17.87461835,173.31,173.24,35.88]
[1748148810291,17.87461835,173.31,173.24,82.5]
[1748148811718,11.43517616,173.31,173.24,82.5]
[1748148814493,11.43517616,173.32,173.24,82.5]
[1748148814691,15.57592731,173.33,173.24,82.5]
[1748148815010,4.14075115,173.33,173.24,82.5]
[1748148815192,15.57592731,173.33,173.24,82.5]
[1748148816112,4.14075115,173.33,173.25,18.64964886]
[1748148816409,4.14075115,173.33,173.25,44.64964886]
[1748148817715,17.86155939,173.34,173.26,118.78]
[1748148817936,17.86155939,173.34,173.27,34.54]
[1748148818088,17.86155939,173.34,173.27,117.04]
[1748148820521,17.86155939,173.34,173.27,117.04]
[1748148826623,4.14075115,173.36,173.27,117.04]
[1748148826624,17.86155939,173.33,173.27,117.04]
[1748148827317,17.86155939,173.34,173.27,117.04]
[1748148827619,17.86155939,173.34,173.28,153.32]
[1748148828007,17.86155939,173.34,173.28,235.82]
[1748148828396,4.14075115,173.35,173.28,235.82]
[1748148828614,17.86155939,173.34,173.28,235.82]
[1748148829624,17.86155939,173.34,173.28,152.92]
[1748148830834,4.14075115,173.35,173.28,117.04]
[1748148831041,22.00231054,173.35,173.28,117.04]
[1748148831538,17.86155939,173.35,173.28,117.04]
[1748148834214,4.14075115,173.37,173.28,117.04]
[1748148834520,17.86155939,173.36,173.28,117.04]
[1748148836022,4.14075115,173.37,173.28,117.04]
[1748148836328,17.86155939,173.36,173.28,117.04]
[1748148836627,4.14075115,173.37,173.28,143.04]
[1748148836830,17.86155939,173.36,173.28,143.04]
[1748148837524,4.14075115,173.37,173.29,118.74]
[1748148837708,4.14075115,173.37,173.29,125.2572]
[1748148837913,4.14075115,173.37,173.29,124.8772]
[1748148838425,4.14075115,173.37,173.29,89.0172]
[1748148839518,17.86155939,173.38,173.29,89.0172]
[1748148839817,11.4253272,173.38,173.29,89.0172]
[1748148840529,11.4253272,173.39,173.29,89.0172]
[1748148841611,4.14075115,173.4,173.29,89.0172]
[1748148841828,4.14075115,173.4,173.33,26.0]
[1748148842027,4.14075115,173.4,173.34,34.54]
[1748148842333,4.14075115,173.4,173.35,18.64964886]
[1748148843125,4.14075115,173.43,173.35,18.64964886]
[1748148844929,11.4253272,173.42,173.34,123.5572]
[1748148845433,11.4253272,173.4,173.34,123.5572]
[1748148845732,17.84807133,173.4,173.34,123.5572]
[1748148846035,17.9902329,173.44,173.34,123.5572]
[1748148846336,17.84807133,173.41,173.34,123.5572]
[1748148846506,0.14216157,173.44,173.34,123.5572]
[1748148846708,17.84807133,173.41,173.34,123.5572]
[1748148847610,0.14216157,173.44,173.35,118.72]
[1748148847809,17.84807133,173.41,173.35,118.72]
[1748148848009,17.84807133,173.42,173.35,35.86]
[1748148848226,17.84807133,173.42,173.34,123.5572]
[1748148851235,26.0,173.45,173.34,123.5572]
[1748148851438,17.84807133,173.44,173.34,123.5572]
[1748148851944,17.84807133,173.44,173.35,18.64964886]
[1748148852437,17.84807133,173.44,173.35,101.14964886]
[1748148852642,26.0,173.47,173.35,101.14964886]
[1748148852816,17.84807133,173.44,173.35,101.14964886]
[1748148853334,26.0,173.47,173.37,18.64964886]
[1748148853638,17.84807133,173.47,173.37,18.64964886]
[1748148854642,17.84807133,173.47,173.38,1.6448]
[1748148854827,17.84807133,173.47,173.39,34.52]
[1748148855549,26.0,173.48,173.39,34.52]
[1748148855847,17.84807133,173.47,173.39,34.52]
[1748148857623,17.84807133,173.47,173.4,118.68]
[1748148859022,17.84807133,173.43,173.38,84.1448]
[1748148859232,17.84807133,173.42,173.41,35.84]
[1748148861146,17.84807133,173.42,173.39,34.52]
[1748148863246,17.84807133,173.42,173.39,117.02]
[1748148864243,1.5376,173.46,173.39,117.02]
[1748148864449,17.84807133,173.44,173.39,117.02]
[1748148864645,1.5376,173.46,173.39,117.02]
[1748148864835,17.84807133,173.43,173.39,117.02]
[1748148865237,17.84807133,173.44,173.39,117.02]
[1748148865436,17.84807133,173.44,173.39,82.5]
[1748148865437,17.84807133,173.4,173.39,82.5]
[1748148865844,17.84807133,173.4,173.39,34.52]
[1748148867756,17.84807133,173.4,173.39,153.2]
[1748148870458,26.0,173.43,173.39,153.2]
[1748148870633,17.84807133,173.4,173.39,70.36]
[1748148871033,17.84807133,173.4,173.39,34.52]
[1748148872056,17.84807133,173.41,173.39,34.52]
[1748148872557,17.84807133,173.42,173.39,34.52]
[1748148874356,26.0,173.43,173.39,34.52]
[1748148874536,17.84807133,173.42,173.39,34.52]
[1748148875047,17.84807133,173.42,173.39,117.02]
[1748148877259,26.0,173.43,173.39,117.02]
[1748148877477,17.84807133,173.42,173.4,82.84]
[1748148877759,17.84807133,173.42,173.4,118.68]
[1748148878451,21.98882248,173.44,173.4,118.68]
[1748148878652,21.98882248,173.44,173.4,35.84]
[1748148879035,21.98882248,173.44,173.39,34.52]
[1748148879863,17.84807133,173.44,173.39,34.52]
[1748148883565,17.84807133,173.43,173.39,34.52]
[1748148883866,17.84807133,173.43,173.39,117.02]
[1748148887563,17.84807133,173.44,173.4,118.68]
[1748148888454,17.84004191,173.44,173.4,118.68]
[1748148888656,17.84004191,173.43,173.4,118.68]
[1748148889859,17.84004191,173.43,173.4,201.18]
[1748148890966,17.84004191,173.43,173.4,82.5]
[1748148891672,11.41904436,173.43,173.4,82.5]
[1748148897575,11.41904436,173.43,173.41,118.66]
[1748148899493,4.14075115,173.45,173.41,35.82]
[1748148899671,4.14075115,173.45,173.41,11.41904436]
[1748148901376,4.14075115,173.45,173.41,93.91904436]
[1748148902372,15.55979551,173.46,173.41,93.91904436]
[1748148903579,4.14075115,173.46,173.41,93.91904436]
[1748148903882,15.55979551,173.46,173.42,11.41904436]
[1748148904176,15.55979551,173.46,173.43,34.52]
[1748148905762,11.41904436,173.46,173.43,34.52]
[1748148906482,15.55979551,173.47,173.43,45.93904436]
[1748148907584,15.55979551,173.47,173.44,118.66]
[1748148908279,4.14075113,173.47,173.44,212.57904436]
[1748148910784,11.41904436,173.49,173.44,212.57904436]
[1748148911171,11.41904436,173.49,173.44,93.91904436]
[1748148911378,26.0,173.51,173.44,82.5]
[1748148911379,11.41904436,173.48,173.44,82.5]
[1748148915095,22.83808872,173.45,173.38,82.5]
[1748148915289,11.41904436,173.39,173.31,8.1048]
[1748148915491,11.41904436,173.38,173.32,34.52]
[1748148915791,11.41904436,173.37,173.32,34.52]
[1748148916094,6.35436157,173.43,173.34,11.41904436]
[1748148916286,0.14216157,173.46,173.36,11.41904436]
[1748148916587,11.41904436,173.43,173.39,11.41904436]
[1748148916796,11.41904436,173.43,173.38,11.41904436]
[1748148917475,11.41904436,173.43,173.39,118.66]
[1748148917666,17.84251302,173.43,173.39,118.66]
[1748148918291,26.0,173.46,173.39,118.66]
[1748148918488,17.84251302,173.43,173.39,35.82]
[1748148919500,26.0,173.46,173.39,35.82]
[1748148919674,17.84251302,173.43,173.38,17.84251302]
[1748148920803,26.0,173.46,173.39,17.84251302]
[1748148920975,17.84251302,173.44,173.39,17.84251302]
[1748148921180,7.8263,173.47,173.41,17.84251302]
[1748148921473,17.84251302,173.45,173.42,34.52]
[1748148921674,7.8263,173.47,173.42,34.52]
[1748148921971,17.84251302,173.45,173.42,34.52]
[1748148925296,17.84251302,173.43,173.42,117.02]
[1748148925500,17.84251302,173.43,173.42,34.52]
[1748148927601,17.84251302,173.43,173.42,153.18]
[1748148929303,17.84251302,173.43,173.42,35.82]
[1748148929484,17.84251302,173.43,173.42,70.34]
[1748148929685,17.84251302,173.43,173.38,82.5]
[1748148929905,17.84251302,173.41,173.39,34.52]
[1748148930808,17.84251302,173.4,173.38,82.5]
[1748148930983,17.84251302,173.4,173.39,34.52]
[1748148932608,17.84251302,173.4,173.35,82.5]
[1748148932902,17.84251302,173.37,173.36,34.52]
[1748148937607,17.84251302,173.37,173.36,153.18]
[1748148941107,17.84251302,173.37,173.36,34.52]
[1748148947524,24.58677459,173.44,173.36,153.2]
[1748148947726,17.84251302,173.38,173.36,153.2]
[1748148947907,17.84251302,173.38,173.36,70.34]
[1748148950531,17.84251302,173.37,173.36,70.34]
[1748148950724,17.84251302,173.38,173.36,70.34]
[1748148951834,17.84251302,173.38,173.36,34.52]
[1748148952133,17.84251302,173.37,173.36,34.52]
[1748148953733,11.42564344,173.37,173.36,34.52]
[1748148955631,26.0,173.41,173.36,34.52]
[1748148955812,11.42564344,173.38,173.36,34.52]
[1748148957719,11.42564344,173.38,173.37,118.68]
[1748148958533,11.42564344,173.39,173.37,35.82]
[1748148959751,26.0,173.38,173.37,35.82]
[1748148959911,37.42564344,173.38,173.37,35.82]
[1748148960117,37.42564344,173.38,173.36,34.52]
[1748148960416,11.42564344,173.37,173.36,34.52]
[1748148961841,17.85510193,173.37,173.36,34.52]
[1748148963141,17.85510193,173.37,173.35,82.5]
[1748148963315,27.5976,173.41,173.36,34.54]
[1748148963620,17.85510193,173.37,173.36,34.54]
[1748148964438,17.85510193,173.37,173.31,84.0169]
[1748148964644,17.85510193,173.34,173.32,34.54]
[1748148966533,17.85510193,173.35,173.32,34.54]
[1748148967067,26.0,173.4,173.32,34.54]
[1748148967243,17.85510193,173.36,173.32,34.54]
[1748148967644,17.85510193,173.36,173.33,118.68]
[1748148967943,17.85510193,173.36,173.33,35.82]
[1748148968266,17.85510193,173.36,173.32,34.54]
[1748148969348,17.85510193,173.36,173.32,117.04]
[1748148969752,17.85510193,173.37,173.32,117.04]
[1748148970249,17.85510193,173.37,173.32,134.89510193]
[1748148972271,4.13013154,173.38,173.32,134.89510193]
[1748148972475,21.98523347,173.38,173.33,17.85510193]
[1748148973268,4.13013154,173.38,173.37,17.85510193]
[1748148973432,4.13013154,173.38,173.37,52.39510193]
[1748148973854,4.13013154,173.38,173.37,34.54]
[1748148974364,4.13013154,173.38,173.37,52.39510193]
[1748148974954,17.85510193,173.41,173.37,52.39510193]
[1748148976646,4.13013154,173.43,173.37,52.39510193]
[1748148977052,17.85510193,173.42,173.38,17.85510193]
[1748148977462,17.85510193,173.42,173.39,118.68]
[1748148977661,4.13013154,173.43,173.39,118.68]
[1748148977975,4.13013154,173.43,173.39,17.85510193]
[1748148978275,4.13013154,173.43,173.4,17.85510193]
[1748148978479,4.13013154,173.43,173.41,34.52]
[1748148978677,4.13013154,173.44,173.41,117.02]
[1748148979594,20.16314886,173.5,173.41,117.02]
[1748148979595,8.97500417,173.55,173.53,18.64964886]
[1748148979895,8.97500417,173.57,173.54,34.52]
[1748148980095,8.97500417,173.57,173.54,52.37510193]
[1748148980458,8.97500417,173.57,173.51,24.80254886]
[1748148980690,8.97500417,173.57,173.56,36.50475079]
[1748148980894,8.97500417,173.57,173.56,71.02475079]
[1748148981058,17.95000834,173.59,173.58,54.35985272]
[1748148981259,35.90001669,173.6,173.59,44.64964886]
[1748148981466,35.90001669,173.6,173.59,80.35985272]
[1748148981878,35.90001669,173.6,173.59,54.35985272]
[1748148982257,35.68050669,173.6,173.59,54.35985272]
[1748148982669,17.85510193,173.71,173.63,18.64964886]
[1748148982869,17.85510193,173.72,173.63,71.02475079]
[1748148984163,7.6932,173.74,173.63,53.16964886]
[1748148984374,17.85510193,173.72,173.67,17.85510193]
[1748148984689,17.85510193,173.72,173.68,34.5]
[1748148985375,17.85510193,173.71,173.68,34.5]
[1748148986180,17.85510193,173.72,173.68,34.5]
[1748148987712,17.85510193,173.72,173.69,120.2]
[1748148988391,17.85510193,173.72,173.69,37.42]
[1748148988701,7.6932,173.74,173.69,37.42]
[1748148988913,17.85510193,173.72,173.68,37.30742632]
[1748148989500,7.6932,173.74,173.68,37.30742632]
[1748148989670,17.85510193,173.72,173.68,37.30742632]
[1748148989993,17.85510193,173.72,173.68,119.80742632]
[1748148992398,12.93442829,173.77,173.69,17.85510193]
[1748148992593,17.85510193,173.75,173.7,17.85510193]
[1748148992907,12.93442829,173.77,173.68,37.30742632]
[1748148992908,12.93442829,173.77,173.71,17.85510193]
[1748148993126,12.93442829,173.77,173.68,37.30742632]
[1748148993127,12.93442829,173.77,173.72,52.33510193]
[1748148993414,12.93442829,173.77,173.76,17.85510193]
[1748148993574,12.93442829,173.77,173.76,70.19020386]
[1748148993781,12.93442829,173.77,173.76,52.33510193]
[1748148994083,12.93442829,173.77,173.76,88.83985272]
[1748148994277,17.85510193,173.86,173.77,18.64964886]
[1748148994507,17.85510193,173.85,173.8,17.85510193]
[1748148994685,0.14216157,173.91,173.81,34.48]
[1748148994879,0.14216157,173.91,173.82,17.85510193]
[1748148995078,17.85510193,173.87,173.82,17.85510193]
[1748148995301,17.85510193,173.88,173.83,17.85510193]
[1748148995975,25.96610193,173.92,173.83,17.85510193]
[1748148995976,8.111,173.92,173.86,17.85510193]
[1748148996192,17.85510193,173.91,173.87,34.46]
[1748148996492,17.85510193,173.9,173.87,34.46]
[1748148996870,17.85510193,173.89,173.87,34.46]
[1748148997078,18.79181043,173.9,173.84,2.4]
[1748148997297,26.0,173.89,173.85,34.46]
[1748148997483,17.85510193,173.86,173.85,34.46]
[1748148997687,17.85510193,173.86,173.85,154.58]
[1748148997895,17.85510193,173.86,173.85,71.86]
[1748148999785,17.85510193,173.86,173.85,34.46]
[1748149000808,35.71020386,173.86,173.85,34.46]
[1748149001313,35.71020386,173.86,173.75,82.5]
[1748149001314,0.14216157,173.85,173.75,82.5]
[1748149001495,17.85510193,173.77,173.71,24.22820193]
[1748149001687,17.85510193,173.77,173.72,17.85510193]
[1748149002131,17.85510193,173.78,173.72,17.85510193]
[1748149002283,17.85510193,173.78,173.73,17.85510193]
[1748149002626,26.0,173.86,173.75,17.85510193]
[1748149002778,17.85510193,173.83,173.78,17.85510193]
[1748149002979,17.85510193,173.81,173.79,34.46]
[1748149003179,26.0,173.86,173.79,34.46]
[1748149003180,17.85510193,173.8,173.79,34.46]
[1748149004023,26.0,173.86,173.79,34.46]
[1748149004203,17.85510193,173.82,173.79,34.46]
[1748149004388,17.85510193,173.81,173.79,34.46]
[1748149005309,17.85510193,173.82,173.79,34.46]
[1748149005805,17.85510193,173.88,173.81,17.85510193]
[1748149005982,17.85510193,173.88,173.83,17.85510193]
[1748149006186,17.85510193,173.88,173.84,34.46]
[1748149006407,17.85510193,173.87,173.84,34.46]
[1748149007015,17.85510193,173.86,173.85,2.4]
[1748149007219,8.2768,173.97,173.85,2.4]
[1748149007511,17.85510193,173.9,173.86,120.04]
[1748149007715,17.85510193,173.89,173.86,120.04]
[1748149007923,17.85510193,173.87,173.85,2.4]
[1748149008221,17.85510193,173.92,173.86,71.82]
[1748149008431,17.85510193,173.92,173.87,37.38]
[1748149009206,17.85510193,173.88,173.87,37.38]
[1748149009915,26.0003635,173.88,173.87,37.38]
[1748149010235,0.14216157,173.87,173.86,34.44]
[1748149010433,17.9972635,173.87,173.86,34.44]
[1748149010932,17.85510193,173.87,173.86,34.44]
[1748149012899,17.9972635,173.87,173.86,34.44]
[1748149013346,17.85510193,173.87,173.86,34.44]
[1748149013834,17.9972635,173.87,173.86,34.44]
[1748149014036,43.9972635,173.87,173.86,34.44]
[1748149014218,61.85236543,173.87,173.86,34.44]
[1748149014723,43.9972635,173.87,173.86,34.44]
[1748149016441,43.85510193,173.87,173.86,34.44]
[1748149017242,26.0,173.87,173.86,34.44]
[1748149017542,43.85510193,173.87,173.86,154.68]
[1748149020451,43.85510193,173.87,173.86,72.02]
[1748149021126,43.85510193,173.87,173.86,34.44]
[1748149024642,0.14216157,173.86,173.73,84.0716]
[1748149024944,17.85510193,173.79,173.74,17.85510193]
[1748149025533,17.85510193,173.78,173.74,17.85510193]
[1748149025737,17.85510193,173.79,173.75,34.44]
[1748149026146,17.85510193,173.79,173.75,52.29510193]
[1748149026532,17.85510193,173.79,173.75,34.44]
[1748149027347,17.85510193,173.8,173.75,52.29510193]
[1748149027648,17.85510193,173.8,173.76,120.24]
[1748149028445,17.85510193,173.81,173.76,120.24]
[1748149028639,17.85510193,173.81,173.75,52.29510193]
[1748149028835,26.0,173.87,173.75,52.29510193]
[1748149029044,1.6337,173.92,173.84,17.85510193]
[1748149029357,1.6337,173.92,173.79,6.2427]
[1748149029358,17.85510193,173.9,173.85,52.29510193]
[1748149029530,1.6337,173.92,173.85,52.29510193]
[1748149029732,17.85510193,173.9,173.85,52.29510193]
[1748149029935,17.85510193,173.89,173.85,34.44]
[1748149031030,17.85510193,173.87,173.81,19.37610193]
[1748149031231,17.85510193,173.86,173.82,34.44]
[1748149031844,17.85510193,173.87,173.82,52.29510193]
[1748149033530,26.0,173.9,173.83,17.85510193]
[1748149033740,17.85510193,173.88,173.83,17.85510193]
[1748149034044,17.85510193,173.88,173.82,52.29510193]
[1748149034548,26.0,173.9,173.82,52.29510193]
[1748149034749,17.85510193,173.88,173.82,52.29510193]
[1748149034941,17.85510193,173.88,173.83,17.85510193]
[1748149035140,17.85510193,173.88,173.82,52.29510193]
[1748149035342,17.85510193,173.87,173.82,34.44]
[1748149035927,17.85510193,173.88,173.82,34.44]
[1748149036244,17.85510193,173.86,173.82,34.44]
[1748149036637,17.85510193,173.88,173.82,52.29510193]
[1748149037046,17.85510193,173.88,173.83,17.85510193]
[1748149037246,27.6337,173.92,173.83,17.85510193]
[1748149037544,17.85510193,173.88,173.84,120.22]
[1748149037753,17.85510193,173.89,173.84,37.58]
[1748149038253,17.85510193,173.88,173.83,17.85510193]
[1748149038630,1.6337,173.92,173.83,17.85510193]
[1748149038824,17.85510193,173.87,173.82,34.44]
[1748149039041,17.85510193,173.85,173.83,34.44]
[1748149039245,17.85510193,173.84,173.79,24.09780193]
[1748149039551,17.85510193,173.85,173.8,52.29510193]
[1748149039853,17.85510193,173.83,173.81,34.44]
[1748149040353,17.85510193,173.84,173.81,34.44]
[1748149041151,26.0,173.9,173.81,34.44]
[1748149041454,17.85510193,173.84,173.82,2.4]
[1748149042865,1.6337,173.92,173.82,20.25510193]
[1748149043038,17.85510193,173.88,173.82,20.25510193]
[1748149043236,1.6337,173.92,173.82,20.25510193]
[1748149043440,17.85510193,173.87,173.82,20.25510193]
[1748149043760,17.85510193,173.89,173.84,17.85510193]
[1748149044248,17.85510193,173.88,173.83,17.85510193]
[1748149044439,17.85510193,173.87,173.83,17.85510193]
[1748149044642,17.85510193,173.88,173.83,17.85510193]
[1748149045454,17.85510193,173.87,173.82,20.25510193]
[1748149045635,26.62208461,173.88,173.83,26.62208461]
[1748149046452,1.6108,173.97,173.84,45.27173347]
[1748149046639,26.62208461,173.92,173.87,26.62208461]
[1748149046835,28.23288461,173.97,173.88,34.44]
[1748149046836,26.62208461,173.9,173.88,34.44]
[1748149047036,26.62208461,173.89,173.88,34.44]
[1748149047555,26.62208461,173.89,173.88,154.48]
[1748149051255,26.62208461,173.89,173.88,71.84]
[1748149053254,26.62208461,173.89,173.88,34.44]
[1748149054359,26.0,173.95,173.88,34.44]
[1748149054563,26.62208461,173.89,173.88,34.44]
[1748149056461,1.6108,173.97,173.88,34.44]
[1748149056669,26.62208461,173.93,173.88,61.06208461]
[1748149057188,26.0,173.95,173.88,61.06208461]
[1748149057343,26.62208461,173.92,173.88,34.44]
[1748149057666,26.62208461,173.92,173.89,120.02]
[1748149058359,26.62208461,173.92,173.88,34.44]
[1748149058957,26.62208461,173.93,173.88,61.06208461]
[1748149059559,26.62208461,173.91,173.88,34.44]
[1748149059758,26.0,173.94,173.88,34.44]
[1748149059960,26.62208461,173.94,173.89,26.62208461]
[1748149060137,26.0,173.95,173.89,26.62208461]
[1748149060341,1.6108,173.97,173.92,26.62208461]
[1748149060542,28.23288461,173.97,173.93,34.42]
[1748149060745,26.62208461,173.97,173.93,61.04208461]
[1748149060950,26.62208461,173.97,173.93,34.42]
[1748149061568,26.62208461,173.96,173.93,34.42]
[1748149062653,26.0,173.99,173.93,61.04208461]
[1748149062950,26.62208461,173.97,173.93,61.04208461]
[1748149063262,26.62208461,173.97,173.93,34.42]
[1748149065351,26.62208461,173.96,173.93,34.42]
[1748149065847,17.73134327,173.96,173.93,34.42]
[1748149066956,17.73134327,173.95,173.93,34.42]